fUST/lending_fUST_20251101
["ID","MTS","AMOUNT","RATE_DAILY","PERIOD"]
[392810621,1761984427158,-500.0,0.00027348,2]
[392810622,1761984427182,-500.0,0.00027348,2]
[392810623,1761984427207,-500.0,0.00027348,2]
[392810624,1761984427231,-500.0,0.00027348,2]
[392810625,1761984427255,-500.0,0.00027348,2]
[392810626,1761984427281,-500.0,0.00027348,2]
[392810627,1761984427305,-500.0,0.00027348,2]
[392810628,1761984427329,-500.0,0.00027348,2]
[392810629,1761984427356,-500.0,0.00027348,2]
[392810630,1761984427382,-500.0,0.00027348,2]
[392810631,1761984427407,-500.0,0.00027348,2]
[392810632,1761984427432,-500.0,0.00027348,2]
[392810633,1761984427456,-243.89840418,0.00027348,2]
[392810634,1761984427480,-500.0,0.00027348,2]
[392810635,1761984427504,-500.0,0.00027348,2]
[392810636,1761984427527,-549.25812384,0.00027348,2]
[392810637,1761984427556,-500.0,0.00027348,2]
[392810638,1761984427579,-500.0,0.00027348,2]
[392810639,1761984427601,-500.0,0.00027348,2]
[392810640,1761984427626,-500.0,0.00027348,2]
[392810641,1761984427650,-500.0,0.00027348,2]
[392810642,1761984427673,-500.0,0.00027348,2]
[392810643,1761984427695,-500.0,0.00027348,2]
[392810644,1761984427716,-500.0,0.00027348,2]
[392810645,1761984427740,-500.0,0.00027348,2]
[392810646,1761984427763,-500.0,0.00027348,2]
[392810647,1761984427788,-500.0,0.00027348,2]
[392810648,1761984427813,-500.0,0.00027348,2]
[392810649,1761984427836,-500.0,0.00027348,2]
[392810650,1761984427860,-500.0,0.00027348,2]
[392810651,1761984427886,-500.0,0.00027348,2]
[392810652,1761984427911,-500.0,0.00027348,2]
[392810653,1761984427934,-500.0,0.00027348,2]
[392810654,1761984427957,-500.0,0.00027348,2]
[392810655,1761984427981,-500.0,0.00027348,2]
[392810656,1761984428003,-500.0,0.00027348,2]
[392810657,1761984428029,-500.0,0.00027348,2]
[392810658,1761984428054,-500.0,0.00027348,2]
[392810659,1761984428078,-500.0,0.00027348,2]
[392810660,1761984428101,-500.0,0.00027348,2]
[392810661,1761984428124,-500.0,0.00027348,2]
[392810662,1761984428147,-500.0,0.00027348,2]
[392810663,1761984428169,-500.0,0.00027348,2]
[392810664,1761984428191,-351.26973426,0.00027348,2]
[392810665,1761984428213,-500.0,0.00027349,2]
[392810666,1761984428234,-560.10303635,0.00027349,2]
[392810667,1761984428255,-500.0,0.00027349,2]
[392810668,1761984428277,-3903.94827541,0.00027353,2]
[392810670,1761984439457,160.16915232,0.000353,120]
[392810674,1761984449094,-228.23970592,0.00026881,2]
[392810676,1761984457545,175.0,0.00038026,30]
[392810692,1761984563950,200.9,0.0003179,31]
[392810693,1761984564252,200.9,0.00032867,31]
[392810694,1761984564572,200.9,0.00032916,31]
[392810695,1761984564969,200.9,0.00034535,31]
[392810696,1761984565258,200.9,0.00035616,31]
[392810697,1761984565568,200.9,0.0003179,31]
[392810698,1761984565907,200.9,0.00032867,31]
[392810699,1761984567001,200.9,0.00032916,31]
[392810700,1761984567305,200.9,0.00034535,31]
[392810701,1761984567648,200.9,0.00035616,31]
[392810702,1761984567993,200.9,0.0003179,31]
[392810703,1761984568606,200.9,0.00032867,31]
[392810704,1761984568922,200.9,0.00032916,31]
[392810705,1761984569286,200.9,0.00034535,31]
[392810706,1761984569621,200.9,0.00035616,31]
[392810707,1761984570000,200.9,0.0003179,31]
[392810708,1761984570353,200.9,0.00032867,31]
[392810709,1761984570766,200.9,0.00032916,31]
[392810710,1761984571082,200.9,0.00034535,31]
[392810711,1761984571407,200.9,0.00035616,31]
[392810712,1761984573187,-24283.2874659,0.00026485,2]
[392810713,1761984573213,-254.4567434,0.00027116,2]
[392810714,1761984573232,-151.0,0.00027334,2]
[392810715,1761984573254,-500.0,0.00027349,2]
[392810716,1761984573276,-500.0,0.00027349,2]
[392810717,1761984573415,-500.0,0.00027349,2]
[392810718,1761984573437,-300.0,0.00027352,2]
[392810719,1761984573458,-5276.00801217,0.00027353,2]
[392810720,1761984573478,-500.0,0.00027373,2]
[392810721,1761984573497,-151.0,0.00027389,2]
[392810722,1761984573521,-151.0,0.00027444,2]
[392810723,1761984573547,-1610.49552985,0.00027492,5]
[392810724,1761984573566,-151.0,0.00027499,2]
[392810725,1761984573587,-151.0,0.00027554,2]
[392810726,1761984573607,-256.7783241,0.00027607,2]
[392810727,1761984573628,-4244.4030734,0.00027607,2]
[392810728,1761984573648,-151.0,0.00027609,2]
[392810729,1761984573672,-151.0,0.00027664,2]
[392810730,1761984573694,-237.435607,0.000277,2]
[392810731,1761984573716,-500.0,0.00027706,2]
[392810732,1761984573737,-500.0,0.00027706,2]
[392810733,1761984573758,-500.0,0.00027706,2]
[392810734,1761984573783,-338.8064582,0.00027706,2]
[392810735,1761984573804,-500.0,0.00027706,2]
[392810736,1761984573827,-500.0,0.00027706,2]
[392810737,1761984573849,-273.75462903,0.00027706,2]
[392810738,1761984573871,-624.38984041,0.00027706,2]
[392810739,1761984573890,-50000.0,0.00027707,2]
[392810740,1761984573914,-151.0,0.00027707,2]
[392810741,1761984573934,-151.0,0.00027707,2]
[392810742,1761984573955,-151.0,0.00027707,2]
[392810743,1761984573976,-151.0,0.00027707,2]
[392810744,1761984573996,-151.0,0.00027707,2]
[392810745,1761984574018,-151.0,0.00027707,2]
[392810746,1761984574038,-151.0,0.00027707,2]
[392810747,1761984574059,-151.0,0.00027707,2]
[392810748,1761984574081,-151.0,0.00027707,2]
[392810749,1761984574101,-151.0,0.00027707,2]
[392810750,1761984574124,-151.0,0.00027707,2]
[392810751,1761984574146,-151.0,0.00027707,2]
[392810752,1761984574168,-151.0,0.00027707,2]
[392810753,1761984574189,-151.0,0.00027707,2]
[392810754,1761984574211,-151.0,0.00027707,2]
[392810755,1761984574233,-151.0,0.00027707,2]
[392810756,1761984574257,-151.0,0.00027707,2]
[392810757,1761984574281,-151.0,0.00027707,2]
[392810758,1761984574303,-151.0,0.00027707,2]
[392810759,1761984574325,-151.0,0.00027707,2]
[392810760,1761984574347,-151.0,0.00027719,2]
[392810761,1761984574368,-500.0,0.00027721,2]
[392810762,1761984574389,-500.0,0.00027721,2]
[392810763,1761984574408,-500.0,0.00027721,2]
[392810764,1761984574432,-500.0,0.00027773,5]
[392810765,1761984574453,-151.0,0.00027774,2]
[392810766,1761984574473,-151.0,0.00027829,2]
[392810767,1761984574494,-1015.37020122,0.0002787,2]
[392810768,1761984574514,-151.0,0.00027884,2]
[392810769,1761984574537,-285.51,0.00027891,10]
[392810770,1761984574559,-342.61,0.00027901,10]
[392810771,1761984574580,-411.13,0.00027911,10]
[392810772,1761984574602,-1000.0,0.00027921,5]
[392810773,1761984574622,-151.0,0.00027939,2]
[392810774,1761984574644,-151.0,0.00027994,2]
[392810775,1761984574665,-151.0,0.00028049,2]
[392810776,1761984574688,-151.0,0.00028104,2]
[392810777,1761984574708,-151.0,0.00028159,2]
[392810778,1761984574728,-151.0,0.00028214,2]
[392810779,1761984574751,-151.0,0.00028269,2]
[392810780,1761984577943,888.7997232,0.00027345,2]
[392810781,1761984581557,401.93115244,0.00027706,2]
[392810785,1761984611673,319.09735848,0.0003389,120]
[392810793,1761984632144,-185.52172004,0.0002589,2]
[392810794,1761984632153,-151.0,0.0002769,2]
[392810796,1761984632163,-151.0,0.0002769,2]
[392810797,1761984632172,-151.0,0.0002769,2]
[392810798,1761984632181,-151.0,0.0002769,2]
[392810799,1761984632190,-151.0,0.0002769,2]
[392810800,1761984632199,-151.0,0.0002769,2]
[392810801,1761984632208,-151.0,0.0002769,2]
[392810802,1761984632217,-151.0,0.0002769,2]
[392810803,1761984632226,-151.0,0.0002769,2]
[392810804,1761984632235,-151.0,0.0002769,2]
[392810805,1761984632244,-151.0,0.0002769,2]
[392810806,1761984632253,-151.0,0.0002769,2]
[392810807,1761984632263,-151.0,0.0002769,2]
[392810808,1761984632275,-151.0,0.0002769,2]
[392810809,1761984632285,-151.0,0.0002769,2]
[392810810,1761984632294,-151.0,0.0002769,2]
[392810811,1761984632303,-151.0,0.0002769,2]
[392810812,1761984632312,-151.0,0.0002769,2]
[392810813,1761984632321,-151.0,0.0002769,2]
[392810814,1761984632330,-151.0,0.0002769,2]
[392810815,1761984632339,-151.0,0.0002769,2]
[392810816,1761984632348,-151.0,0.00027745,2]
[392810817,1761984632358,-151.0,0.000278,2]
[392810818,1761984632370,-151.0,0.00027855,2]
[392810819,1761984632380,-218.91562965,0.0002789,2]
[392810820,1761984632389,-151.0,0.0002791,2]
[392810821,1761984632398,-151.0,0.00027965,2]
[392810822,1761984632407,-151.0,0.0002802,2]
[392810823,1761984632416,-151.0,0.00028075,2]
[392810824,1761984632425,-1000.0,0.00028321,5]
[392810825,1761984632434,-500.0,0.0002872,2]
[392810826,1761984632443,-1200.0,0.00029015,2]
[392810827,1761984632453,-300.0,0.00029027,2]
[392810828,1761984632462,-171.15389029,0.00029028,2]
[392810829,1761984632471,-319.3019375,0.00029028,2]
[392810830,1761984632480,-190.0,0.00029126,2]
[392810831,1761984632490,-300.0,0.00029126,2]
[392810832,1761984632499,-2123.04731066,0.00029127,2]
[392810833,1761984632509,-2123.04731066,0.00029512,2]
[392810834,1761984632518,-21620.9173138,0.00029571,2]
[392810835,1761984632528,-160.97847619,0.00029571,2]
[392810836,1761984632537,-1472.8424198,0.00029581,2]
[392810837,1761984632547,-2123.04731066,0.0002975,2]
[392810838,1761984632556,-252.30953926,0.0002989,2]
[392810839,1761984632565,-845.0,0.00029921,2]
[392810840,1761984632574,-2123.04731066,0.00029998,2]
[392810841,1761984632584,-500.0,0.00030003,2]
[392810842,1761984632594,-244.01736168,0.00030003,2]
[392810843,1761984632604,-1170.92714148,0.0003012,2]
[392810844,1761984632613,-1170.92714148,0.00030141,2]
[392810845,1761984632623,-2123.04731066,0.0003022,2]
[392810846,1761984632632,-452.94467579,0.0003029,2]
[392810847,1761984632641,-1241.0,0.00030366,2]
[392810848,1761984632650,-588.20310965,0.00030396,2]
[392810849,1761984632659,-171.1855494,0.00030409,2]
[392810850,1761984632668,-500.0,0.00030495,2]
[392810851,1761984632677,-500.0,0.00030505,2]
[392810852,1761984632687,-4258.16635617,0.00030506,2]
[392810853,1761984632696,-2123.04731066,0.00030519,2]
[392810854,1761984632705,-1170.92714148,0.0003063,2]
[392810855,1761984632715,-1073.0,0.00030787,2]
[392810856,1761984632724,-1170.92714148,0.00030837,2]
[392810857,1761984632734,-160.0,0.00030906,3]
[392810858,1761984632743,-1000.0,0.00030938,2]
[392810859,1761984632758,-1000.0,0.00030938,2]
[392810860,1761984632768,-446.84561193,0.00030938,2]
[392810861,1761984632778,-2123.04731066,0.00030947,2]
[392810862,1761984632787,-171.1855494,0.00030955,2]
[392810863,1761984632797,-456.00506667,0.0003096,2]
[392810864,1761984632810,-21164.91224713,0.0003096,2]
[392810865,1761984632820,-160.97847619,0.0003096,2]
[392810866,1761984632829,-602.77182167,0.00030969,2]
[392810867,1761984632839,-2600.85234187,0.0003097,2]
[392810868,1761984632848,-3745.22737229,0.0003097,2]
[392810869,1761984632857,-5092.57291947,0.0003097,2]
[392810870,1761984632867,-347.28407299,0.0003097,2]
[392810871,1761984632875,-2903.98775127,0.0003097,2]
[392810872,1761984632885,-500.0,0.00030973,5]
[392810873,1761984632894,-515.99993859,0.00030973,5]
[392810874,1761984632903,-43241.8346277,0.0003098,2]
[392810875,1761984632912,-321.95695238,0.0003098,2]
[392810876,1761984632922,-500.0,0.00031001,2]
[392810877,1761984632931,-588.20310964,0.00031001,2]
[392810878,1761984632941,-1073.0,0.00031066,7]
[392810879,1761984632950,-1181.0,0.00031082,7]
[392810880,1761984632959,-315.78891959,0.00031096,14]
[392810881,1761984632970,-888.7997232,0.00031097,2]
[392810882,1761984632979,-1170.92714148,0.00031105,2]
[392810883,1761984632988,-160.0,0.00031133,2]
[392810884,1761984632998,-2123.04731066,0.00031157,2]
[392810885,1761984633007,-2123.04731066,0.00031238,2]
[392810886,1761984633016,-420.0,0.00031316,2]
[392810887,1761984633026,-420.0,0.0003142,3]
[392810888,1761984633036,-1680.0,0.00031439,3]
[392810889,1761984633048,-1170.92714152,0.0003146,2]
[392810890,1761984633057,-1181.0,0.0003147,2]
[392810891,1761984633068,-7747.13388872,0.000315,2]
[392810892,1761984633077,-171.1855494,0.000315,2]
[392810893,1761984633086,-1000.0,0.00031521,5]
[392810894,1761984633096,-21620.9173138,0.00031545,2]
[392810895,1761984633105,-160.97847619,0.00031545,2]
[392810896,1761984633114,-500.0,0.00031553,2]
[392810897,1761984633123,-193.6039459,0.00031555,2]
[392810898,1761984633132,-5230.7372876,0.00031555,2]
[392810899,1761984633141,-21477.8240903,0.00031555,2]
[392810900,1761984633151,-500.0,0.00031573,2]
[392810901,1761984633159,-19737.75,0.000316,7]
[392810902,1761984633168,-588.20310964,0.00031606,2]
[392810903,1761984633177,-500.0,0.00031608,2]
[392810904,1761984633186,-500.0,0.00031663,2]
[392810905,1761984633195,-595.0,0.00031672,7]
[392810906,1761984633204,-260.0,0.00031681,2]
[392810907,1761984633213,-500.0,0.00031717,2]
[392810908,1761984633222,-500.0,0.00031772,2]
[392810909,1761984633231,-150.0,0.00031773,5]
[392810910,1761984633240,-21620.9173138,0.0003178,2]
[392810911,1761984633249,-160.97847619,0.0003178,2]
[392810912,1761984633258,-203.850282,0.0003179,15]
[392810913,1761984633267,-203.850282,0.0003179,15]
[392810914,1761984633276,-203.850282,0.0003179,15]
[392810915,1761984633284,-203.850282,0.0003179,15]
[392810916,1761984633293,-4162.74,0.000318,2]
[392810917,1761984633302,-500.0,0.00031827,2]
[392810918,1761984633311,-1181.0,0.00031875,2]
[392810919,1761984633321,-1181.0,0.00031881,7]
[392810920,1761984633330,-500.0,0.00031882,2]
[392810921,1761984633339,-285.70344887,0.0003189,2]
[392810922,1761984633349,-2158.0,0.00031903,2]
[392810923,1761984633358,-500.0,0.00031937,2]
[392810924,1761984633368,-168.0,0.00031959,2]
[392810925,1761984633377,-2158.0,0.00031982,2]
[392810926,1761984633386,-71835.80370239,0.0003199,2]
[392810927,1761984633398,-3920.49543934,0.0003199,2]
[392810928,1761984633409,-696.6439202,0.0003199,2]
[392810929,1761984633424,-180.48776005,0.00029749,2]
[392810930,1761984633433,-6758.2870403,0.0003199,2]
[392810943,1761984638091,-151.0,0.0002813,2]
[392810944,1761984638103,-151.0,0.00028185,2]
[392810945,1761984638113,-151.0,0.0002824,2]
[392810946,1761984638123,-151.0,0.00028295,2]
[392810947,1761984638132,-114.96,0.0002835,2]
[392810948,1761984638169,-36.04,0.0002835,2]
[392810949,1761984638178,-151.0,0.00028405,2]
[392810950,1761984638187,-94.0,0.0002846,2]
[392810980,1761984640385,-57.0,0.0002846,2]
[392810981,1761984640394,-64.6333434,0.00028515,2]
[392810990,1761984643148,-14.60557555,0.00028515,2]
[392810992,1761984643292,-71.76108105,0.00028515,2]
[392810993,1761984643302,-151.0,0.0002857,2]
[392810994,1761984643312,-151.0,0.00028625,2]
[392810995,1761984643320,-151.0,0.0002868,2]
[392810996,1761984643329,-151.0,0.00028735,2]
[392810997,1761984643338,-324.23891895,0.0003199,2]
[392811000,1761984647582,-241.63498327,0.00029028,2]
[392811001,1761984647591,-241.63498327,0.00031787,3]
[392811002,1761984647601,-5566.51313661,0.0003199,2]
[392811027,1761984747893,198.46714883,0.000353,120]
[392811030,1761984753886,160.16915232,0.000353,120]
[392811050,1761984872266,177.19912161,0.0003561,30]
[392811055,1761984931994,284.23903454,0.0003389,120]
[392811062,1761985005679,176.58373741,0.000353,120]
[392811067,1761985060539,198.46714883,0.000353,120]
[392811069,1761985068214,160.16915232,0.000353,120]
[392811072,1761985107963,169.2331236,0.00014248,2]
[392811073,1761985113558,403.98447456,0.00035616,30]
[392811074,1761985137479,411.26863738,0.00035616,30]
[392811076,1761985182203,10000.0,0.0002551,2]
[392811079,1761985190738,3000.0,0.00035616,30]
[392811082,1761985222288,10000.0,0.0002551,2]
[392811101,1761985231869,2953.88148003,0.00035616,30]
[392811122,1761985241067,10000.0,0.0002551,2]
[392811123,1761985252561,274.46121176,0.00033547,120]
[392811124,1761985252985,303.18389671,0.00035547,120]
[392811125,1761985259209,5000.0,0.0002551,2]
[392811126,1761985267290,5000.0,0.0002551,2]
[392811127,1761985282413,5000.0,0.0002551,2]
[392811128,1761985290222,5000.0,0.0002551,2]
[392811131,1761985306325,5000.0,0.0002551,2]
[392811132,1761985314113,5000.0,0.0002551,2]
[392811134,1761985321007,176.58373741,0.000353,120]
[392811135,1761985329743,5000.0,0.0002551,2]
[392811136,1761985337768,5000.0,0.0002551,2]
[392811138,1761985352816,5000.0,0.0002551,2]
[392811139,1761985360556,5000.0,0.0002551,2]
[392811140,1761985376190,5000.0,0.0002551,2]
[392811141,1761985382392,160.16915232,0.000353,120]
[392811142,1761985384442,5000.0,0.0002551,2]
[392811144,1761985399569,5000.0,0.0002551,2]
[392811146,1761985401522,970.91390526,0.00035616,30]
[392811147,1761985407299,5000.0,0.0002551,2]
[392811148,1761985422472,5000.0,0.0002551,2]
[392811149,1761985430279,5000.0,0.0002551,2]
[392811150,1761985445529,5000.0,0.0002551,2]
[392811151,1761985448815,3645.42,0.0002551,2]
[392811152,1761985453390,5000.0,0.0002551,2]
[392811154,1761985463248,2500.0,0.00035616,30]
[392811155,1761985468923,5000.0,0.0002551,2]
[392811157,1761985474364,1060.881287,0.00013699,2]
[392811158,1761985474564,1060.881287,0.00020187,2]
[392811159,1761985477250,5000.0,0.0002551,2]
[392811160,1761985493399,5000.0,0.0002551,2]
[392811162,1761985501640,5000.0,0.0002551,2]
[392811175,1761985512064,1058.70039989,0.00035438,36]
[392811180,1761985516873,5000.0,0.0002551,2]
[392811181,1761985524681,1327.22162057,0.0002551,2]
[392811187,1761985539840,5000.0,0.0002551,2]
[392811202,1761985562774,5000.0,0.0002551,2]
[392811209,1761985569667,150.0,0.00025376,2]
[392811210,1761985572104,258.0,0.00033376,120]
[392811211,1761985572813,285.0,0.00035376,120]
[392811212,1761985585634,5000.0,0.0002551,2]
[392811218,1761985607889,5000.0,0.0002551,2]
[392811219,1761985631193,-1060.881287,0.00026676,2]
[392811220,1761985631218,-177.0,0.00027376,2]
[392811221,1761985631249,-203.0576355,0.00028467,2]
[392811222,1761985631274,-204.0,0.00029376,2]
[392811223,1761985631298,-293.29015185,0.00030076,2]
[392811224,1761985631331,5000.0,0.0002551,2]
[392811225,1761985635730,176.58373741,0.000353,120]
[392811230,1761985653499,5000.0,0.0002551,2]
[392811231,1761985661582,20000.02,0.00018,2]
[392811234,1761985691178,274.71621819,0.00021,2]
[392811235,1761985699056,160.16915232,0.000353,120]
[392811236,1761985699789,358.61311103,0.00022,2]
[392811237,1761985702365,74225.92630608,0.00025,15]
[392811238,1761985702391,10660.29202282,0.00025,15]
[392811239,1761985704033,533.40294742,0.00022,5]
[392811240,1761985704481,1981.33887923,0.00025,2]
[392811241,1761985705610,657.90657511,0.00024,60]
[392811242,1761985706707,1377.54449564,0.0002061,2]
[392811248,1761985713804,205.49901009,0.00021,2]
[392811249,1761985714151,4.88614716,0.00023,2]
[392811250,1761985714174,5334.96754105,0.00023,2]
[392811251,1761985714661,1000.0,0.000235,2]
[392811252,1761985716076,2287.49796331,0.00024142,2]
[392811253,1761985716098,10000.01,0.00024142,2]
[392811254,1761985716121,10000.01,0.00024142,2]
[392811255,1761985716142,10000.01,0.00024142,2]
[392811256,1761985716163,10000.01,0.00024142,2]
[392811257,1761985716186,10000.01,0.00024142,2]
[392811258,1761985716208,10000.01,0.00024142,2]
[392811259,1761985716229,10000.01,0.00024142,2]
[392811260,1761985716249,5383.85511257,0.00024142,2]
[392811261,1761985726752,4616.15488743,0.000255,2]
[392811262,1761985726774,383.84511257,0.000255,2]
[392811263,1761985732807,150.0,1.04e-06,2]
[392811264,1761985733874,150.0,1.04e-06,2]
[392811265,1761985734911,150.0,1.04e-06,2]
[392811266,1761985735952,150.0,1.04e-06,2]
[392811267,1761985736990,150.0,1.04e-06,2]
[392811268,1761985738024,150.0,1.04e-06,2]
[392811270,1761985748766,5000.0,0.000255,2]
[392811271,1761985765269,300.0,0.000241,2]
[392811272,1761985771718,2250.57536133,0.000255,2]
[392811273,1761985771739,461.75149264,0.000255,2]
[392811274,1761985771760,2287.67314603,0.000255,2]
[392811275,1761985775712,300.0,0.000241,2]
[392811276,1761985777443,200.9,0.00032796,31]
[392811277,1761985777743,200.9,0.00032806,31]
[392811278,1761985778065,200.9,0.000335,31]
[392811279,1761985778977,200.9,0.00035616,31]
[392811280,1761985779267,200.9,0.00035616,31]
[392811281,1761985779554,200.9,0.00032796,31]
[392811282,1761985779854,200.9,0.00032806,31]
[392811283,1761985780146,200.9,0.000335,31]
[392811284,1761985780435,200.9,0.00035616,31]
[392811285,1761985780731,200.9,0.00035616,31]
[392811286,1761985781039,200.9,0.00032796,31]
[392811287,1761985781653,200.9,0.00032806,31]
[392811288,1761985781961,200.9,0.000335,31]
[392811290,1761985782265,200.9,0.00035616,31]
[392811291,1761985782562,200.9,0.00035616,31]
[392811292,1761985782847,200.9,0.00032796,31]
[392811293,1761985783150,200.9,0.00032806,31]
[392811294,1761985783447,200.9,0.000335,31]
[392811295,1761985783741,200.9,0.00035616,31]
[392811296,1761985784036,200.9,0.00035616,31]
[392811297,1761985786229,300.0,0.000241,2]
[392811298,1761985796654,300.0,0.000241,2]
[392811299,1761985807267,165.79734977,0.000241,2]
[392811300,1761985807290,134.20265023,0.000241,2]
[392811301,1761985815116,500.0,0.000253,2]
[392811303,1761985818176,300.0,0.000241,2]
[392811304,1761985829282,300.0,0.000241,2]
[392811313,1761985832407,-345.35977022,0.00026396,2]
[392811314,1761985832417,-1200.0,0.00029677,2]
[392811315,1761985832427,-2129.96382798,0.00029678,2]
[392811316,1761985832440,-296.33809117,0.00029678,2]
[392811317,1761985832466,-2573.69808085,0.00029678,2]
[392811318,1761985832475,-200.0,0.00029678,2]
[392811319,1761985832485,-161.54726533,0.00029978,2]
[392811320,1761985832494,-400.0,0.00030071,2]
[392811321,1761985832503,-400.0,0.00030072,2]
[392811322,1761985832512,-400.0,0.00030072,2]
[392811323,1761985832521,-400.0,0.00030072,2]
[392811324,1761985832530,-400.0,0.00030072,2]
[392811325,1761985832540,-3677.19142027,0.00030073,2]
[392811326,1761985832550,-527.75291796,0.00030078,2]
[392811327,1761985832559,-151.0,0.00030159,2]
[392811328,1761985832569,-263.39659933,0.00030159,2]
[392811329,1761985832578,-151.0,0.00030159,2]
[392811330,1761985832587,-151.0,0.00030159,2]
[392811331,1761985832596,-151.0,0.00030159,2]
[392811332,1761985832605,-151.0,0.00030159,2]
[392811333,1761985832614,-151.0,0.00030159,2]
[392811334,1761985832624,-151.0,0.00030159,2]
[392811335,1761985832633,-151.0,0.00030159,2]
[392811336,1761985832641,-151.0,0.00030159,2]
[392811337,1761985832650,-151.0,0.00030159,2]
[392811338,1761985832659,-151.0,0.00030159,2]
[392811339,1761985832668,-151.0,0.00030159,2]
[392811340,1761985832676,-151.0,0.00030159,2]
[392811341,1761985832686,-151.0,0.00030159,2]
[392811342,1761985832696,-151.0,0.00030159,2]
[392811343,1761985832707,-151.0,0.00030159,2]
[392811344,1761985832717,-151.0,0.00030159,2]
[392811345,1761985832728,-151.0,0.00030159,2]
[392811346,1761985832738,-151.0,0.00030159,2]
[392811347,1761985832748,-151.0,0.00030159,2]
[392811348,1761985832758,-151.0,0.00030159,2]
[392811349,1761985832769,-1600.0,0.00030163,2]
[392811350,1761985832781,-6789.8540386,0.00030164,2]
[392811351,1761985832791,-1358.65,0.00030164,10]
[392811352,1761985832803,-500.0,0.00030168,2]
[392811353,1761985832812,-793.35081932,0.00030168,2]
[392811354,1761985832822,-793.35081932,0.00030168,2]
[392811355,1761985832832,-33191.86397441,0.00030169,2]
[392811367,1761985838326,-793.35081932,0.00030168,2]
[392811368,1761985838336,-793.35081932,0.00030168,2]
[392811369,1761985838346,-500.0,0.00030168,2]
[392811370,1761985838355,-793.35081932,0.00030168,2]
[392811371,1761985838364,-793.35081932,0.00030168,2]
[392811372,1761985838374,-500.0,0.00030168,2]
[392811373,1761985838384,-793.35081932,0.00030168,2]
[392811374,1761985838393,-793.35081932,0.00030168,2]
[392811375,1761985838402,-500.0,0.00030168,2]
[392811376,1761985838412,-793.35081932,0.00030168,2]
[392811377,1761985838421,-793.35081932,0.00030168,2]
[392811378,1761985838430,-258.16921267,0.00030168,2]
[392811379,1761985838439,-793.35081932,0.00030168,2]
[392811380,1761985838450,-793.35081932,0.00030168,2]
[392811381,1761985838459,-793.35081932,0.00030168,2]
[392811382,1761985838468,-793.35081932,0.00030168,2]
[392811383,1761985838478,-793.35081932,0.00030168,2]
[392811384,1761985838487,-793.35081932,0.00030168,2]
[392811385,1761985838497,-793.35081932,0.00030168,2]
[392811386,1761985838506,-793.35081932,0.00030168,2]
[392811387,1761985838515,-793.35081932,0.00030168,2]
[392811388,1761985838524,-285.66599298,0.00030168,2]
[392811389,1761985838535,-507.68482634,0.00030168,2]
[392811390,1761985838544,-793.35081932,0.00030168,2]
[392811391,1761985838553,-793.35081932,0.00030168,2]
[392811392,1761985838563,-793.35081932,0.00030168,2]
[392811393,1761985838572,-793.35081932,0.00030168,2]
[392811394,1761985838582,-793.35081932,0.00030168,2]
[392811395,1761985838592,-793.35081932,0.00030168,2]
[392811396,1761985838601,-793.35081932,0.00030168,2]